fUSD/lending_fUSD_20240225
["ID","MTS","AMOUNT","RATE_DAILY","PERIOD"]
[315169631,1708899058619,-737.9,0.00022999,2]
[315169632,1708899058628,-308.15094803,0.00022999,2]
[315169633,1708899058637,-292.77644325,0.00022999,2]
[315169634,1708899058645,-500.0,0.00022999,2]
[315169635,1708899058655,-500.0,0.00022999,2]
[315169636,1708899058665,-500.0,0.00022999,2]
[315169637,1708899058674,-500.0,0.00022999,2]
[315169638,1708899058683,-500.0,0.00022999,2]
[315169639,1708899058692,-500.0,0.00022999,2]
[315169640,1708899058702,-500.0,0.00022999,2]
[315169641,1708899058711,-500.0,0.00022999,2]
[315169642,1708899058721,-500.0,0.00022999,2]
[315169643,1708899058730,-500.0,0.00022999,2]
[315169644,1708899058739,-295.99,0.00022999,2]
[315169645,1708899058748,-500.0,0.00022999,2]
[315169646,1708899058757,-500.0,0.00022999,2]
[315169647,1708899058766,-500.0,0.00022999,2]
[315169648,1708899058775,-500.0,0.00022999,2]
[315169649,1708899058784,-500.0,0.00022999,2]
[315169650,1708899058793,-500.0,0.00022999,2]
[315169651,1708899058802,-500.0,0.00022999,2]
[315169652,1708899058811,-402.16,0.00022999,2]
[315169653,1708899058820,-500.0,0.00022999,2]
[315169654,1708899058830,-500.0,0.00022999,2]
[315169655,1708899058839,-500.0,0.00022999,2]
[315169656,1708899058848,-500.0,0.00022999,2]
[315169657,1708899058857,-500.0,0.00022999,2]
[315169658,1708899058867,-500.0,0.00022999,2]
[315169659,1708899058876,-500.0,0.00022999,2]
[315169660,1708899058885,-500.0,0.00022999,2]
[315169661,1708899058895,-500.0,0.00022999,2]
[315169662,1708899058903,-500.0,0.00022999,2]
[315169663,1708899058913,-500.0,0.00022999,2]
[315169664,1708899058922,-500.0,0.00022999,2]
[315169665,1708899058931,-500.0,0.00022999,2]
[315169666,1708899058940,-500.0,0.00022999,2]
[315169667,1708899058949,-500.0,0.00022999,2]
[315169668,1708899058958,-500.0,0.00022999,2]
[315169669,1708899058968,-500.0,0.00022999,2]
[315169670,1708899058977,-500.0,0.00022999,2]
[315169671,1708899058987,-500.0,0.00022999,2]
[315169672,1708899058998,-218.86,0.00022999,2]
[315169673,1708899059007,-500.0,0.00022999,2]
[315169674,1708899059016,-500.0,0.00022999,2]
[315169675,1708899059025,-500.0,0.00022999,2]
[315169676,1708899059035,-500.0,0.00022999,2]
[315169677,1708899059045,-500.0,0.00022999,2]
[315169678,1708899059054,-500.0,0.00022999,2]
[315169679,1708899059064,-508.6,0.00022999,2]
[315169680,1708899059074,-500.0,0.00022999,2]
[315169681,1708899059084,-500.0,0.00022999,2]
[315169682,1708899059093,-500.0,0.00022999,2]
[315169683,1708899059102,-500.0,0.00022999,2]
[315169684,1708899059112,-500.0,0.00022999,2]
[315169685,1708899059121,-500.0,0.00022999,2]
[315169686,1708899059131,-368.38,0.00022999,2]
[315169687,1708899059141,-500.0,0.00022999,2]
[315169688,1708899059150,-500.0,0.00022999,2]
[315169689,1708899059160,-500.0,0.00022999,2]
[315169690,1708899059170,-500.0,0.00022999,2]
[315169691,1708899059179,-500.0,0.00022999,2]
[315169692,1708899059189,-500.0,0.00022999,2]
[315169693,1708899059199,-500.0,0.00022999,2]
[315169694,1708899059209,-500.0,0.00022999,2]
[315169695,1708899059219,-500.0,0.00022999,2]
[315169696,1708899059229,-500.0,0.00022999,2]
[315169697,1708899059238,-500.0,0.00022999,2]
[315169698,1708899059248,-500.0,0.00022999,2]
[315169699,1708899059258,-500.0,0.00022999,2]
[315169700,1708899059268,-500.0,0.00022999,2]
[315169701,1708899059278,-500.0,0.00022999,2]
[315169702,1708899059288,-500.0,0.00022999,2]
[315169703,1708899059297,-500.0,0.00022999,2]
[315169704,1708899059307,-500.0,0.00022999,2]
[315169705,1708899059317,-500.0,0.00022999,2]
[315169706,1708899059327,-500.0,0.00022999,2]
[315169707,1708899059336,-500.0,0.00022999,2]
[315169708,1708899059346,-217.92671306,0.00022999,2]
[315169709,1708899059356,-500.0,0.00022999,2]
[315169710,1708899059366,-331.13,0.00022999,2]
[315169711,1708899059375,-500.0,0.00022999,2]
[315169712,1708899059385,-500.0,0.00022999,2]
[315169713,1708899059394,-272.23,0.00022999,2]
[315169714,1708899059404,-500.0,0.00022999,2]
[315169715,1708899059414,-500.0,0.00022999,2]
[315169716,1708899059423,-500.0,0.00022999,2]
[315169717,1708899059432,-500.0,0.00022999,2]
[315169718,1708899059441,-500.0,0.00022999,2]
[315169719,1708899059451,-165.24523666,0.00022999,2]
[315169720,1708899059461,-500.0,0.00022999,2]
[315169721,1708899059470,-279.4741419,0.00022999,2]
[315169722,1708899059479,-460.69,0.00022999,2]
[315169723,1708899059488,-500.0,0.00022999,2]
[315169724,1708899059498,-500.0,0.00022999,2]
[315169725,1708899059507,-500.0,0.00022999,2]
[315169726,1708899059517,-500.0,0.00022999,2]
[315169727,1708899059526,-500.0,0.00022999,2]
[315169728,1708899059535,-500.0,0.00022999,2]
[315169729,1708899059545,-500.0,0.00022999,2]
[315169730,1708899059554,-500.0,0.00022999,2]
[315169731,1708899059565,-500.0,0.00022999,2]
[315169732,1708899059574,-500.0,0.00022999,2]
[315169733,1708899059583,-500.0,0.00022999,2]
[315169734,1708899059593,-500.0,0.00022999,2]
[315169735,1708899059602,-500.0,0.00022999,2]
[315169736,1708899059612,-500.0,0.00022999,2]
[315169737,1708899059621,-500.0,0.00022999,2]
[315169738,1708899059630,-500.0,0.00022999,2]
[315169739,1708899059639,-362.71,0.00022999,2]
[315169740,1708899059648,-500.0,0.00022999,2]
[315169741,1708899059659,-500.0,0.00022999,2]
[315169742,1708899059679,-637.84,0.00022999,2]
[315169743,1708899059689,-500.0,0.00022999,2]
[315169744,1708899059699,-500.0,0.00022999,2]
[315169745,1708899059709,-500.0,0.00022999,2]
[315169746,1708899059718,-500.0,0.00022999,2]
[315169747,1708899059728,-500.0,0.00022999,2]
[315169748,1708899059738,-500.0,0.00022999,2]
[315169749,1708899059748,-500.0,0.00022999,2]
[315169750,1708899059757,-500.0,0.00022999,2]
[315169751,1708899059767,-500.0,0.00022999,2]
[315169752,1708899059777,-500.0,0.00022999,2]
[315169753,1708899059786,-500.0,0.00022999,2]
[315169754,1708899059796,-500.0,0.00022999,2]
[315169755,1708899059805,-500.0,0.00022999,2]
[315169756,1708899059815,-500.0,0.00022999,2]
[315169757,1708899059825,-500.0,0.00022999,2]
[315169758,1708899059834,-500.0,0.00022999,2]
[315169759,1708899059844,-500.0,0.00022999,2]
[315169760,1708899059853,-500.0,0.00022999,2]
[315169761,1708899059863,-500.0,0.00022999,2]
[315169762,1708899059873,-308.5263883,0.00022999,2]
[315169763,1708899059883,-500.0,0.00022999,2]
[315169764,1708899059893,-500.0,0.00022999,2]
[315169765,1708899059903,-500.0,0.00022999,2]
[315169766,1708899059913,-500.0,0.00022999,2]
[315169767,1708899059923,-152.75077833,0.00022999,2]
[315169768,1708899059933,-500.0,0.00022999,2]
[315169769,1708899059943,-500.0,0.00022999,2]
[315169770,1708899059953,-500.0,0.00022999,2]
[315169771,1708899059963,-500.0,0.00022999,2]
[315169772,1708899059973,-263.09,0.00022999,2]
[315169773,1708899059983,-500.0,0.00022999,2]
[315169774,1708899059995,-500.0,0.00022999,2]
[315169775,1708899060006,-500.0,0.00022999,2]
[315169776,1708899060016,-500.0,0.00022999,2]
[315169777,1708899060026,-500.0,0.00022999,2]
[315169778,1708899060037,-500.0,0.00022999,2]
[315169779,1708899060047,-300.03605888,0.00022999,2]
[315169780,1708899060057,-500.0,0.00022999,2]
[315169781,1708899060068,-500.0,0.00022999,2]
[315169782,1708899060078,-500.0,0.00022999,2]
[315169783,1708899060088,-500.0,0.00022999,2]
[315169784,1708899060098,-500.0,0.00022999,2]
[315169785,1708899060107,-500.0,0.00022999,2]
[315169786,1708899060117,-500.0,0.00022999,2]
[315169787,1708899060127,-500.0,0.00022999,2]
[315169788,1708899060137,-500.0,0.00022999,2]
[315169789,1708899060146,-500.0,0.00022999,2]
[315169790,1708899060156,-500.0,0.00022999,2]
[315169791,1708899060166,-500.0,0.00022999,2]
[315169792,1708899060176,-500.0,0.00022999,2]
[315169793,1708899060187,-500.0,0.00022999,2]
[315169794,1708899060198,-500.0,0.00022999,2]
[315169795,1708899060209,-479.34,0.00022999,2]
[315169796,1708899060219,-500.0,0.00022999,2]
[315169797,1708899060230,-196.75,0.00022999,2]
[315169798,1708899060241,-500.0,0.00022999,2]
[315169799,1708899060253,-500.0,0.00022999,2]
[315169800,1708899060264,-500.0,0.00022999,2]
[315169801,1708899060275,-439.89477708,0.00022999,2]
[315169802,1708899060286,-281.40450563,0.00023,2]
[315169803,1708899060298,-3308497.61012512,0.00023,2]
[315169804,1708899060606,-315.50843989,0.00023,2]
[315169805,1708899060634,-500.0,0.00022721,2]
[315169806,1708899060643,-1076.10650313,0.00023,2]
[315169807,1708899061651,-500.0,0.0002254,2]
[315169808,1708899061661,-509.06360408,0.00022541,2]
[315169809,1708899061672,-500.0,0.00022541,2]
[315169810,1708899061684,-500.0,0.00022541,2]
[315169811,1708899061695,-640.94917376,0.00022669,2]
[315169812,1708899061706,-500.0,0.00022669,2]
[315169813,1708899061722,-319.20234303,0.000229,2]
[315169814,1708899061734,-500.0,0.00022998,2]
[315169815,1708899061745,-500.0,0.00022998,2]
[315169816,1708899061758,-500.0,0.00022999,2]
[315169817,1708899061769,-500.0,0.00022999,2]
[315169818,1708899061780,-500.0,0.00022999,2]
[315169819,1708899061791,-500.0,0.00022999,2]
[315169820,1708899061802,-500.0,0.00022999,2]
[315169821,1708899061815,-500.0,0.00022999,2]
[315169822,1708899061827,-183589.63868851,0.00023,2]
[315169823,1708899061841,-510.50635156,0.00023,2]
[315169824,1708899061860,-938.06556108,0.00023,2]
[315169825,1708899061874,-424.54446131,0.00023,2]
[315169826,1708899061887,-15526.5,0.00023,2]
[315169827,1708899061901,-2789.80009592,0.00023,2]
[315169828,1708899061919,-4051.15251331,0.00023,2]
[315169829,1708899061933,-974.83501854,0.00023,2]
[315169830,1708899062338,-500.0,0.00021996,2]
[315169831,1708899062349,-500.0,0.0002254,2]
[315169832,1708899062358,-500.0,0.0002254,2]
[315169833,1708899062368,-500.0,0.00022541,2]
[315169834,1708899062378,-500.0,0.00022541,2]
[315169835,1708899062388,-500.0,0.00022541,2]
[315169836,1708899062398,-500.0,0.00022669,2]
[315169837,1708899062408,-500.0,0.00022669,2]
[315169838,1708899062417,-517.69449457,0.00022669,2]
[315169839,1708899062427,-340.40777271,0.00022669,2]
[315169840,1708899062437,-500.0,0.00022721,2]
[315169841,1708899062447,-500.0,0.00022999,2]
[315169842,1708899062457,-169.39,0.00022999,2]
[315169843,1708899062470,-59018.24381111,0.00023,2]
[315169844,1708899062487,-764956.23819536,0.00023,2]
[315169845,1708899062511,-61997.11865583,0.00023,2]
[315169846,1708899062770,-464.93484092,0.00022541,2]
[315169847,1708899164326,151.0,0.00026736,120]
[315169849,1708899176487,353.77987326,0.00022541,15]
[315169850,1708899207107,1455.88,0.00020014,2]
[315169853,1708899318043,23900.0,0.0002188,2]
[315169855,1708899364830,229.44,0.00021793,2]
[315169856,1708899411564,2000.0,0.00021783,2]
[315169857,1708899447847,-615.82016421,0.00021917,2]
[315169858,1708899447882,-163.92,0.00021918,2]
[315169859,1708899447916,-840.0,0.00021968,2]
[315169860,1708899447949,-150.0,0.00021995,2]
[315169861,1708899447984,-177.83,0.00022,2]
[315169862,1708899448016,-227.34531811,0.00022,2]
[315169863,1708899448049,-2735.98,0.00022144,2]
[315169864,1708899448082,-250.0,0.00022144,2]
[315169865,1708899448117,-1455.88,0.00022278,2]
[315169866,1708899448157,-500.0,0.0002254,2]
[315169867,1708899448191,-500.0,0.0002254,2]
[315169868,1708899448225,-500.0,0.0002254,2]
[315169869,1708899448261,-500.0,0.0002254,2]
[315169870,1708899448294,-500.0,0.0002254,2]
[315169871,1708899448342,-552.91,0.0002254,2]
[315169872,1708899448376,-500.0,0.0002254,2]
[315169873,1708899448412,-500.0,0.0002254,2]
[315169874,1708899448444,-500.0,0.0002254,2]
[315169875,1708899448479,-500.0,0.0002254,2]
[315169876,1708899448512,-452.83,0.0002254,2]
[315169877,1708899448545,-500.0,0.0002254,2]
[315169878,1708899448582,-500.0,0.0002254,2]
[315169879,1708899448615,-559.54559186,0.0002254,2]
[315169880,1708899448647,-500.0,0.0002254,2]
[315169881,1708899448679,-500.0,0.0002254,2]
[315169882,1708899448720,-500.0,0.0002254,2]
[315169883,1708899448759,-500.0,0.0002254,2]
[315169884,1708899448794,-500.0,0.0002254,2]
[315169885,1708899448829,-500.0,0.0002254,2]
[315169886,1708899448863,-500.0,0.0002254,2]
[315169887,1708899448899,-500.0,0.0002254,2]
[315169888,1708899448933,-500.0,0.0002254,2]
[315169889,1708899448968,-500.0,0.0002254,2]
[315169890,1708899449003,-500.0,0.0002254,2]
[315169891,1708899449037,-500.0,0.0002254,2]
[315169892,1708899449070,-162.13,0.0002254,2]
[315169893,1708899449108,-500.0,0.0002254,2]
[315169894,1708899449142,-500.0,0.0002254,2]
[315169895,1708899449176,-500.0,0.0002254,2]
[315169896,1708899449211,-500.0,0.0002254,2]
[315169897,1708899449250,-500.0,0.0002254,2]
[315169898,1708899449499,-500.0,0.0002254,2]
[315169899,1708899449532,-1000.0,0.0002254,2]
[315169900,1708899449564,-500.0,0.0002254,2]
[315169901,1708899449596,-500.0,0.0002254,2]
[315169902,1708899449627,-500.0,0.0002254,2]
[315169903,1708899449658,-500.0,0.0002254,2]
[315169904,1708899449690,-500.0,0.0002254,2]
[315169905,1708899449721,-500.0,0.0002254,2]
[315169906,1708899449753,-500.0,0.0002254,2]
[315169907,1708899449786,-500.0,0.0002254,2]
[315169908,1708899449819,-500.0,0.0002254,2]
[315169909,1708899449853,-500.0,0.0002254,2]
[315169910,1708899449887,-500.0,0.0002254,2]
[315169911,1708899449919,-500.0,0.0002254,2]
[315169912,1708899449957,-427.81206429,0.0002254,2]
[315169913,1708899449992,-500.0,0.0002254,2]
[315169914,1708899450026,-139.18372306,0.0002254,2]
[315169915,1708899451392,-177.62627694,0.0002254,2]
[315169916,1708899456825,-500.0,0.0002254,2]
[315169917,1708899456859,-500.0,0.0002254,2]
[315169918,1708899456893,-500.0,0.0002254,2]
[315169919,1708899456925,-500.0,0.0002254,2]
[315169920,1708899456964,-522.26225667,0.0002254,2]
[315169921,1708899456998,-500.0,0.0002254,2]
[315169922,1708899457031,-542.79,0.0002254,2]
[315169923,1708899457066,-371.71,0.0002254,2]
[315169924,1708899457100,-500.0,0.0002254,2]
[315169925,1708899457136,-500.0,0.0002254,2]
[315169926,1708899457173,-500.0,0.0002254,2]
[315169927,1708899457208,-500.0,0.0002254,2]
[315169928,1708899457243,-500.0,0.0002254,2]
[315169929,1708899457275,-500.0,0.0002254,2]
[315169930,1708899457308,-500.0,0.0002254,2]
[315169931,1708899457344,-500.0,0.0002254,2]
[315169932,1708899457380,-500.0,0.0002254,2]
[315169933,1708899457419,-500.0,0.0002254,2]
[315169934,1708899457453,-500.0,0.0002254,2]
[315169935,1708899457488,-500.0,0.0002254,2]
[315169936,1708899457523,-500.0,0.0002254,2]
[315169937,1708899457556,-500.0,0.0002254,2]
[315169938,1708899457589,-500.0,0.0002254,2]
[315169939,1708899457622,-500.0,0.0002254,2]
[315169940,1708899457655,-500.0,0.0002254,2]
[315169941,1708899457689,-500.0,0.0002254,2]
[315169942,1708899457722,-500.0,0.0002254,2]
[315169943,1708899457758,-500.0,0.0002254,2]
[315169944,1708899457790,-500.0,0.0002254,2]
[315169945,1708899457827,-500.0,0.0002254,2]
[315169946,1708899457866,-500.0,0.0002254,2]
[315169947,1708899457904,-500.0,0.0002254,2]
[315169948,1708899458785,-126.47548666,0.0002254,2]
[315169949,1708899464218,-373.52451334,0.0002254,2]
[315169950,1708899464250,-274.01603313,0.0002254,2]
[315169951,1708899464283,-500.0,0.0002254,2]
[315169952,1708899464316,-500.0,0.0002254,2]
[315169953,1708899464350,-500.0,0.0002254,2]
[315169954,1708899464382,-500.0,0.0002254,2]
[315169955,1708899464416,-500.0,0.0002254,2]
[315169956,1708899464448,-500.0,0.0002254,2]
[315169957,1708899464480,-500.0,0.0002254,2]
[315169958,1708899464511,-500.0,0.0002254,2]
[315169959,1708899464543,-500.0,0.0002254,2]
[315169960,1708899464575,-500.0,0.0002254,2]
[315169961,1708899464607,-204.91890706,0.0002254,2]
[315169962,1708899465043,-295.08109294,0.0002254,2]
[315169963,1708899469582,-154.6,0.0002212,2]
[315169964,1708899469617,-500.0,0.0002254,2]
[315169965,1708899469651,-500.0,0.0002254,2]
[315169966,1708899469687,-500.0,0.0002254,2]
[315169967,1708899469718,-500.0,0.0002254,2]
[315169968,1708899469750,-500.0,0.0002254,2]
[315169969,1708899469782,-500.0,0.0002254,2]
[315169970,1708899469815,-500.0,0.0002254,2]
[315169971,1708899469848,-500.0,0.0002254,2]
[315169972,1708899469880,-500.0,0.0002254,2]
[315169973,1708899469912,-500.0,0.0002254,2]
[315169974,1708899469946,-500.0,0.0002254,2]
[315169975,1708899469978,-190.8,0.0002254,2]
[315169976,1708899470395,-309.2,0.0002254,2]
[315169977,1708899642358,250.0,0.00021808,2]
[315169978,1708899684604,1310.29,0.00019877,2]
[315169979,1708899686903,328.0,0.00021795,2]
[315169980,1708899687554,182.76,0.00021778,2]
[315169981,1708899693245,5000.0,0.00021808,2]
[315169982,1708899704594,2610.11,0.00021782,2]
[315169983,1708899706586,469.76605451,0.00021808,2]
[315169984,1708899709268,5000.0,0.00021808,2]
[315169985,1708899722597,469.76605451,0.00021808,2]
[315169986,1708899733249,5000.0,0.00021808,2]
[315169987,1708899740606,469.25829623,0.00021808,2]
[315169988,1708899753249,5000.0,0.00021808,2]
[315169989,1708899762651,469.76605451,0.00021808,2]
[315169990,1708899774011,151.0,0.00026867,120]
[315169991,1708899776668,19619.01,0.00021777,2]
[315169993,1708899777421,5000.0,0.00021808,2]
[315169994,1708899782605,469.76605451,0.00021808,2]
[315169995,1708899793274,536.97992068,0.00021808,2]
[315169996,1708899804435,469.76605451,0.00021808,2]
[315169997,1708899820448,469.76605451,0.00021808,2]
[315169998,1708899838442,403.47930949,0.00021808,2]
[315169999,1708899838724,150.0,0.00021753,2]
[315170000,1708899842835,229.44,0.00021753,2]
[315170001,1708899874099,206.0,0.00021559,2]
[315170002,1708899934727,2000.0,0.00021656,2]
[315170003,1708899957790,154.6,0.00021791,2]
[315170004,1708899971739,184.64768247,0.000219,2]
[315170005,1708899978299,150.0,0.00021721,2]
[315170006,1708899992417,212.96,0.00017307,2]
[315170007,1708899999246,177.83,0.00021,2]
[315170008,1708900000592,177.83,0.00021548,2]
[315170009,1708900039410,150.0,0.00021721,2]
[315170010,1708900095912,1886.39102387,0.000219,2]
[315170011,1708900101862,260.73618207,0.00021721,2]
[315170012,1708900151676,250.0,0.00021528,2]
[315170013,1708900153482,207.6925,0.000219,2]
[315170014,1708900177500,1260.36,0.00019631,2]
[315170015,1708900177856,1260.36,0.00021895,2]
[315170016,1708900196908,737.6,0.00021549,2]
[315170026,1708900231782,-615.82016421,0.00021917,2]
[315170027,1708900231792,-160.36,0.00021918,2]
[315170028,1708900231802,-163.45894624,0.0002194,2]
[315170029,1708900231811,-300.0,0.00021998,2]
[315170030,1708900231821,-150.0,0.00021998,2]
[315170031,1708900231831,-150.0,0.00021998,2]
[315170032,1708900231840,-200.0,0.00021999,2]
[315170033,1708900231850,-500.0,0.00021999,2]
[315170034,1708900231860,-500.0,0.00021999,2]
[315170035,1708900231869,-500.0,0.00021999,2]
[315170036,1708900231879,-500.0,0.00021999,2]
[315170037,1708900231889,-500.0,0.00021999,2]
[315170038,1708900231899,-500.0,0.00021999,2]
[315170039,1708900231908,-500.0,0.00021999,2]
[315170040,1708900231918,-500.0,0.00021999,2]
[315170041,1708900231927,-500.0,0.00021999,2]
[315170042,1708900231936,-500.0,0.00021999,2]
[315170043,1708900231946,-500.0,0.00021999,2]
[315170045,1708900231955,-500.0,0.00021999,2]
[315170049,1708900231965,-500.0,0.00021999,2]
[315170052,1708900231975,-617.53,0.00021999,2]
[315170056,1708900231988,-266.13,0.00021999,2]
[315170058,1708900231997,-500.0,0.00021999,2]
[315170060,1708900232007,-500.0,0.00021999,2]
[315170062,1708900232016,-533.07417099,0.00021999,2]
[315170064,1708900232026,-521.17193744,0.00021999,2]
[315170066,1708900232035,-500.0,0.00021999,2]
[315170067,1708900232044,-500.0,0.00021999,2]
[315170068,1708900232054,-500.0,0.00021999,2]
[315170069,1708900232063,-500.0,0.00021999,2]
[315170070,1708900232072,-500.0,0.00021999,2]
[315170071,1708900232082,-500.0,0.00021999,2]
[315170072,1708900232091,-500.0,0.00021999,2]
[315170073,1708900232100,-500.0,0.00021999,2]
[315170074,1708900232109,-518.5727442,0.00021999,2]
[315170075,1708900232120,-500.0,0.00021999,2]
[315170076,1708900232129,-500.0,0.00021999,2]
[315170077,1708900232139,-507.37900718,0.00021999,2]
[315170078,1708900232148,-500.0,0.00021999,2]
[315170079,1708900232157,-500.0,0.00021999,2]
[315170080,1708900232166,-397706.03618365,0.00022,2]
[315170081,1708900232493,-11881.10722559,0.00022,2]
[315170082,1708900232504,-24560.96377012,0.00022,2]
[315170088,1708900237572,-500.0,0.00021999,2]
[315170089,1708900237583,-500.0,0.00021999,2]
[315170090,1708900237593,-500.0,0.00021999,2]
[315170091,1708900237602,-500.0,0.00021999,2]
[315170092,1708900237611,-3268.18001551,0.00022,2]
[315170093,1708900237621,-1500.93,0.00022,2]
[315170094,1708900237630,-354.35,0.00022096,2]
[315170095,1708900237640,-1886.39102385,0.00022169,2]
[315170096,1708900237649,-761.13,0.00022248,2]
[315170097,1708900237658,-163.45894624,0.0002226,2]
[315170098,1708900237668,-150.0,0.00022269,2]
[315170099,1708900237933,-152.06455619,0.00022269,2]
[315170100,1708900237946,-160.36,0.00022283,2]
[315170101,1708900237955,-206.0,0.00022306,2]
[315170102,1708900237965,-1886.39102385,0.00022438,2]
[315170103,1708900237974,-796.01668419,0.0002244,2]
[315170104,1708900237987,-500.0,0.00022539,2]
[315170105,1708900237997,-156.72775017,0.00022539,2]
[315170106,1708900238217,-343.27224983,0.00022539,2]
[315170107,1708900238227,-500.0,0.00022539,2]
[315170108,1708900238238,-500.0,0.00022539,2]
[315170109,1708900238248,-320.23,0.00022539,2]
[315170110,1708900238256,-500.0,0.00022539,2]
[315170111,1708900238265,-501.64141366,0.00022539,2]
[315170112,1708900238275,-500.0,0.00022539,2]
[315170113,1708900238284,-511.56090111,0.00022539,2]
[315170114,1708900238293,-506.67048823,0.00022539,2]
[315170115,1708900238303,-500.0,0.0002254,2]
[315170116,1708900238316,-500.0,0.0002254,2]
[315170117,1708900238327,-2000.0,0.0002254,2]
[315170118,1708900238336,-200.0,0.0002254,2]
[315170120,1708900238345,-500.0,0.0002254,2]
[315170122,1708900238355,-500.0,0.0002254,2]
[315170124,1708900238364,-500.0,0.0002254,2]
[315170127,1708900238377,-500.0,0.0002254,2]
[315170129,1708900238386,-500.0,0.0002254,2]
[315170131,1708900238396,-500.0,0.0002254,2]
[315170133,1708900238405,-500.0,0.0002254,2]
[315170135,1708900238415,-500.0,0.0002254,2]
[315170137,1708900238424,-500.0,0.0002254,2]
[315170139,1708900238434,-500.0,0.0002254,2]
[315170141,1708900238443,-500.0,0.0002254,2]
[315170143,1708900238453,-500.0,0.0002254,2]
[315170145,1708900238462,-500.0,0.0002254,2]
[315170147,1708900238472,-500.0,0.0002254,2]
[315170149,1708900238482,-500.0,0.0002254,2]
[315170151,1708900238491,-500.0,0.0002254,2]
[315170153,1708900238500,-500.0,0.0002254,2]
[315170155,1708900238509,-500.0,0.0002254,2]
[315170157,1708900238518,-500.0,0.0002254,2]
[315170158,1708900238527,-500.0,0.0002254,2]
[315170160,1708900238536,-500.0,0.0002254,2]
[315170163,1708900238546,-500.0,0.0002254,2]
[315170165,1708900238556,-500.0,0.0002254,2]
[315170167,1708900238565,-500.0,0.0002254,2]
[315170169,1708900238575,-500.0,0.0002254,2]
[315170170,1708900238584,-500.0,0.0002254,2]
[315170173,1708900238593,-500.0,0.0002254,2]
[315170175,1708900238602,-500.0,0.0002254,2]
[315170177,1708900238612,-500.0,0.0002254,2]
[315170179,1708900238621,-500.0,0.0002254,2]
[315170181,1708900238629,-500.0,0.0002254,2]
[315170183,1708900238639,-500.0,0.0002254,2]
[315170185,1708900238648,-500.0,0.0002254,2]
[315170187,1708900238657,-500.0,0.0002254,2]
[315170189,1708900238666,-500.0,0.0002254,2]
[315170191,1708900238675,-500.0,0.0002254,2]
[315170193,1708900238685,-500.0,0.0002254,2]
[315170195,1708900238694,-500.0,0.0002254,2]
[315170197,1708900238703,-500.0,0.0002254,2]
[315170198,1708900238712,-500.0,0.0002254,2]
[315170200,1708900238721,-500.0,0.0002254,2]
[315170203,1708900238731,-500.0,0.0002254,2]
[315170204,1708900238741,-500.0,0.0002254,2]
[315170206,1708900238750,-500.0,0.0002254,2]
[315170209,1708900238759,-500.0,0.0002254,2]